fUSD/lending_fUSD_20240924
["ID","MTS","AMOUNT","RATE_DAILY","PERIOD"]
[339067017,1727189441955,-500.0,0.00012899,2]
[339067018,1727189441968,-500.0,0.00012899,2]
[339067019,1727189441978,-500.0,0.00012899,2]
[339067020,1727189441988,-500.0,0.00012899,2]
[339067021,1727189441998,-500.0,0.00012899,2]
[339067022,1727189442007,-500.0,0.00012899,2]
[339067023,1727189442017,-500.0,0.00012899,2]
[339067024,1727189442027,-500.0,0.00012899,2]
[339067025,1727189442037,-500.0,0.00012899,2]
[339067026,1727189442047,-500.0,0.00012899,2]
[339067027,1727189442056,-500.0,0.00012899,2]
[339067028,1727189442066,-500.0,0.00012899,2]
[339067029,1727189442075,-500.0,0.00012899,2]
[339067030,1727189442085,-500.0,0.00012899,2]
[339067031,1727189442095,-500.0,0.00012899,2]
[339067032,1727189442104,-500.0,0.00012899,2]
[339067033,1727189442114,-500.0,0.00012899,2]
[339067034,1727189442123,-247.36,0.00012899,2]
[339067035,1727189442133,-1182.74,0.00012899,2]
[339067036,1727189442142,-1182.74,0.00012899,2]
[339067037,1727189442152,-1182.74,0.00012899,2]
[339067038,1727189442164,-1182.74,0.00012899,2]
[339067039,1727189442174,-1182.74,0.00012899,2]
[339067040,1727189442183,-1182.74,0.00012899,2]
[339067041,1727189442193,-1182.74,0.00012899,2]
[339067042,1727189442202,-1182.74,0.00012899,2]
[339067043,1727189442212,-1182.74,0.00012899,2]
[339067044,1727189442221,-1182.74,0.00012899,2]
[339067045,1727189442230,-1182.74,0.00012899,2]
[339067046,1727189442239,-1182.74,0.00012899,2]
[339067047,1727189442248,-1182.74,0.00012899,2]
[339067048,1727189442258,-1182.74,0.00012899,2]
[339067049,1727189442267,-1182.74,0.00012899,2]
[339067050,1727189442276,-1182.74,0.00012899,2]
[339067051,1727189442286,-1182.74,0.00012899,2]
[339067052,1727189442296,-1182.74,0.00012899,2]
[339067053,1727189442305,-1182.74,0.00012899,2]
[339067054,1727189442317,-1182.78,0.00012899,2]
[339067055,1727189442327,-742.08,0.00012899,2]
[339067056,1727189442337,-742.08,0.00012899,2]
[339067057,1727189442347,-742.08,0.00012899,2]
[339067058,1727189442356,-742.08,0.00012899,2]
[339067059,1727189442366,-742.08,0.00012899,2]
[339067060,1727189442375,-742.08,0.00012899,2]
[339067061,1727189442384,-742.08,0.00012899,2]
[339067062,1727189442394,-742.08,0.00012899,2]
[339067063,1727189442403,-742.08,0.00012899,2]
[339067064,1727189442415,-742.08,0.00012899,2]
[339067065,1727189442424,-742.08,0.00012899,2]
[339067066,1727189442433,-742.08,0.00012899,2]
[339067067,1727189442443,-742.08,0.00012899,2]
[339067068,1727189442453,-742.08,0.00012899,2]
[339067069,1727189442462,-742.08,0.00012899,2]
[339067070,1727189442472,-742.08,0.00012899,2]
[339067071,1727189442482,-742.08,0.00012899,2]
[339067072,1727189442491,-742.08,0.00012899,2]
[339067073,1727189442501,-742.08,0.00012899,2]
[339067074,1727189442511,-742.08,0.00012899,2]
[339067075,1727189442521,-742.08,0.00012899,2]
[339067076,1727189442530,-742.16,0.00012899,2]
[339067077,1727189442540,-500.0,0.00012899,2]
[339067078,1727189442550,-500.0,0.00012899,2]
[339067079,1727189442559,-500.0,0.00012899,2]
[339067080,1727189442568,-500.0,0.00012899,2]
[339067081,1727189442578,-1024.0,0.000129,2]
[339067082,1727189442587,-18372.22578847,0.000129,2]
[339067087,1727189442922,-673.90533451,0.000129,2]
[339067088,1727189442935,-1175.26064,0.000129,2]
[339067089,1727189442947,-3075.72210345,0.000129,2]
[339067090,1727189443006,1000.0,0.00022,120]
[339067091,1727189443054,-961.14525012,0.000129,2]
[339067092,1727189443066,-695.84866301,0.000129,2]
[339067093,1727189443078,-5403.05417497,0.000129,2]
[339067094,1727189443089,-701.666667,0.000129,2]
[339067095,1727189443100,-489.29187735,0.000129,2]
[339067096,1727189443111,-1130.77964873,0.000129,2]
[339067097,1727189443123,-297.70000018,0.000129,2]
[339067098,1727189443133,-1006.62630079,0.000129,2]
[339067099,1727189443145,-352.72799642,0.000129,2]
[339067100,1727189443161,-513.18500005,0.000129,2]
[339067101,1727189443172,-5674.84497642,0.000129,2]
[339067102,1727189443183,-22212.84406301,0.000129,2]
[339067103,1727189443194,-229138.36667645,0.000129,2]
[339067104,1727189443203,-1705214.44475875,0.000129,2]
[339067105,1727189443215,-674.74381166,0.000129,2]
[339067106,1727189443226,-660.19,0.000129,2]
[339067107,1727189443237,-2204.45423647,0.000129,2]
[339067108,1727189443249,-135729.98338126,0.000129,2]
[339067109,1727189443260,-2115.73344882,0.000129,2]
[339067110,1727189443271,-3580.65352381,0.000129,2]
[339067111,1727189443282,-3799.999993,0.000129,2]
[339067112,1727189443293,-2743.43994,0.000129,2]
[339067113,1727189443305,-2125.86043622,0.000129,2]
[339067114,1727189443317,-835.04991627,0.000129,2]
[339067115,1727189443329,-584.94556398,0.000129,2]
[339067116,1727189443340,-512.00786555,0.000129,2]
[339067117,1727189443351,-15843.63179293,0.000129,2]
[339067118,1727189443362,-5150.83994801,0.000129,2]
[339067119,1727189443373,-2076.93381065,0.000129,2]
[339067120,1727189443385,-1269.9797806,0.000129,2]
[339067147,1727189445850,-1106.23530893,0.00012544,2]
[339067148,1727189445861,-874.0,0.000129,2]
[339067149,1727189445871,-10528.98672647,0.000129,2]
[339067150,1727189445882,-58812.4513374,0.000129,2]
[339067151,1727189445988,-1650.24238056,0.000129,2]
[339067152,1727189445999,-315.79999999,0.000129,2]
[339067153,1727189446011,-5990.73861914,0.000129,2]
[339067154,1727189446026,-664.3539998,0.000129,2]
[339067155,1727189446127,-1137.2107,0.000129,2]
[339067156,1727189446139,-3025.4746263,0.000129,2]
[339067157,1727189446150,-2058.30301093,0.000129,2]
[339067158,1727189446168,-337.33106947,0.000129,2]
[339067167,1727189458972,2000.0,0.00021,60]
[339067168,1727189624785,2000.0,0.00021,60]
[339067169,1727189657568,502.33,9.838e-05,2]
[339067171,1727190238293,10000.0,0.00011103,2]
[339067172,1727190249120,477.21,9.485e-05,2]
[339067173,1727190358473,561.74694263,0.00022,120]
[339067174,1727190425657,154.65,0.00010959,2]
[339067205,1727190632245,-250.0,0.0001138,2]
[339067206,1727190632255,-2171.09900074,0.000114,2]
[339067207,1727190632267,-18371.63099926,0.000114,2]
[339067208,1727190632277,-250.0,0.00011403,2]
[339067209,1727190632286,-329.88,0.00011438,2]
[339067210,1727190632296,-155.61,0.00011465,2]
[339067211,1727190632305,-250.0,0.00011466,2]
[339067212,1727190632315,-998.4185018,0.0001148,2]
[339067213,1727190632325,-150.0,0.00011481,2]
[339067214,1727190632335,-9860.16434402,0.00011482,2]
[339067215,1727190632344,-2784.05583029,0.00011482,2]
[339067216,1727190632356,-1958.52839709,0.00011482,2]
[339067217,1727190632367,-257.41577262,0.00011482,2]
[339067218,1727190632377,-1742.58422738,0.00011482,2]
[339067224,1727190638693,-1329.33793983,0.00011482,2]
[339067225,1727190638706,-1928.07783279,0.00011482,2]
[339067226,1727190638718,-500.09,0.00011498,2]
[339067227,1727190638727,-164.62,0.00011611,2]
[339067228,1727190638736,-890.24,0.00011611,2]
[339067229,1727190638747,-499.99,0.00011611,2]
[339067230,1727190638756,-164.62,0.00011626,2]
[339067231,1727190638765,-164.62,0.0001164,2]
[339067232,1727190638775,-299.99,0.0001164,2]
[339067233,1727190638783,-164.62,0.00011655,2]
[339067234,1727190638793,-164.62,0.00011669,2]
[339067235,1727190638802,-477.21,0.00011749,2]
[339067236,1727190638811,-159.98,0.00011848,2]
[339067237,1727190638821,-1000.0,0.00011884,2]
[339067238,1727190638830,-300.0,0.000119,4]
[339067239,1727190638840,-700.0,0.00012,4]
[339067240,1727190638849,-150.0,0.000121,2]
[339067241,1727190638858,-150.0,0.000121,2]
[339067243,1727190638867,-150.0,0.000121,2]
[339067245,1727190638877,-150.0,0.000121,2]
[339067247,1727190638886,-283.61,0.000121,2]
[339067249,1727190638895,-1000.0,0.000121,4]
[339067250,1727190638904,-150.0,0.000122,2]
[339067252,1727190638914,-150.0,0.000122,2]
[339067253,1727190638923,-150.0,0.000122,2]
[339067254,1727190638932,-150.0,0.000122,2]
[339067255,1727190638941,-150.0,0.000122,2]
[339067256,1727190638950,-1400.0,0.000122,4]
[339067257,1727190638959,-150.0,0.000123,2]
[339067258,1727190638968,-1700.0,0.000123,4]
[339067259,1727190638978,-300.0,0.000124,4]
[339067260,1727190638987,-300.0,0.000125,4]
[339067261,1727190638997,-1005.0,0.000125,2]
[339067262,1727190639006,-255.0,0.00012549,2]
[339067263,1727190639015,-500.0,0.000126,2]
[339067264,1727190639025,-1000.0,0.000126,2]
[339067265,1727190639035,-300.0,0.000126,4]
[339067266,1727190639045,-1068.0,0.000126,2]
[339067267,1727190639055,-1063.26867158,0.00012642,2]
[339067268,1727190639065,-422.08681491,0.00012653,2]
[339067269,1727190639074,-1536.35500319,0.000127,2]
[339067270,1727190639087,-2008.28008,0.000127,2]
[339067271,1727190639099,-4777.962902,0.000127,2]
[339067274,1727190640212,-316.88,0.000127,2]
[339067333,1727190643100,-928.57450665,0.000127,2]
[339067335,1727190643261,-595.0,0.000127,2]
[339067470,1727190646252,-6272.2,0.000127,2]
[339067476,1727190646581,-857.11149439,0.000127,2]
[339067478,1727190646593,-258.0813,0.000127,2]
[339067480,1727190646604,-1971.71958477,0.000127,2]
[339067485,1727190719917,329.2,0.00021,60]
[339067487,1727190805542,2000.0,0.00022,120]
[339067488,1727190823235,429.48,9.937e-05,2]
[339067489,1727190944404,876.36468542,0.00022,120]
[339067490,1727190956884,500.0,0.00021,60]
[339067491,1727191066335,500.0,0.00021,60]
[339067492,1727191407674,408.0,9.854e-05,2]
[339067504,1727191770159,275.88,0.00010959,2]
[339067522,1727191832448,-198.94022254,0.00011589,2]
[339067523,1727191832458,-244.78398037,0.00011589,2]
[339067524,1727191832467,-205.06248027,0.00011718,2]
[339067525,1727191832479,-682.41751973,0.00011718,2]
[339067526,1727191832488,-250.04,0.00011723,2]
[339067527,1727191832498,-159.98,0.00011772,2]
[339067528,1727191832508,-15.7593937,0.00011776,2]
[339067529,1727191832519,-234.2406063,0.00011776,2]
[339067530,1727191832529,-51.05640658,0.00011842,2]
[339067531,1727191832541,-101.80359342,0.00011842,2]
[339067532,1727191832551,-1000.0,0.00011849,2]
[339067533,1727191832560,-300.0,0.00012071,2]
[339067534,1727191832569,-6941.61566483,0.00012072,2]
[339067535,1727191832578,-537.17,0.00012072,2]
[339067536,1727191832587,-999.99,0.00012072,2]
[339067537,1727191832597,-6010.95,0.00012072,2]
[339067538,1727191832606,-408.0,0.00012118,2]
[339067539,1727191832615,-499.99,0.00012118,2]
[339067540,1727191832624,-1000.0,0.000124,2]
[339067541,1727191832634,-1502.92904101,0.000125,2]
[339067542,1727191832646,-376.40946976,0.00012555,2]
[339067543,1727191832656,-3886.28585161,0.0001269,2]
[339067544,1727191832665,-3638.43444044,0.00012699,2]
[339067545,1727191832680,-1747.48715956,0.00012699,2]
[339067546,1727191832690,-150.0,0.00012699,2]
[339067547,1727191832699,-13584.6606,0.000127,2]
[339067548,1727191832709,-18199.2489,0.000127,2]
[339067549,1727191832718,-13654.02574221,0.000127,2]
[339067551,1727191832729,-1000.0,0.000127,2]
[339067552,1727191832738,-154.62,0.000127,2]
[339067554,1727191832747,-150.0,0.000127,2]
[339067556,1727191832756,-301.28,0.000127,2]
[339067558,1727191832765,-428.31,0.000127,2]
[339067560,1727191832774,-288.0,0.0001273,2]
[339067562,1727191832784,-1412.586,0.00012744,2]
[339067564,1727191832793,-477.33,0.00012767,14]
[339067565,1727191832802,-151.41,0.0001277,2]
[339067567,1727191832812,-2500.0,0.00012772,2]
[339067568,1727191832821,-54260.17510602,0.00012777,2]
[339067569,1727191832833,-15699.9359719,0.00012777,2]
[339067570,1727191832844,-342.1,0.00012777,2]
[339067571,1727191832857,-2781.38216888,0.00012777,2]
[339067573,1727191838476,-1656.96940033,0.0001268,2]
[339067574,1727191838488,-496.804842,0.0001268,2]
[339067575,1727191838500,-669.980028,0.0001268,2]
[339067576,1727191838546,-310.36632967,0.0001268,2]
[339067577,1727191838556,-168.86952186,0.00012777,2]
[339067578,1727191838567,-500.0,0.00012777,2]
[339067579,1727191838733,-1856.5631075,0.00012777,2]
[339067580,1727191838745,-586.27968751,0.00012777,2]
[339067581,1727191838756,-300.32,0.00012777,2]
[339067582,1727191838790,-24059.66385186,0.00012777,2]
[339067583,1727191838804,-18902.91804951,0.00012777,2]
[339067584,1727191838815,-17996.72186206,0.00012777,2]
[339067585,1727191838827,-440.1604635,0.00012777,2]
[339067586,1727191838838,-734.84497895,0.00012777,2]
[339067587,1727191838848,-5314.22404625,0.00012777,2]
[339067588,1727191838861,-154030.4427118,0.00012777,2]
[339067589,1727191838870,-132425.30166288,0.0001278,2]
[339067590,1727191838880,-159.3902091,0.00012788,2]
[339067591,1727191838892,-214.65479575,0.00012795,2]
[339067592,1727191838901,-2514.0003,0.00012795,2]
[339067593,1727191838911,-214.65479573,0.00012797,2]
[339067594,1727191838920,-108763.53145508,0.00012798,2]
[339067595,1727191838932,-214.65479573,0.00012798,2]
[339067596,1727191838941,-2278.5678,0.00012798,2]
[339067597,1727191838953,-530.457,0.000128,2]
[339067598,1727191838964,-174.91,0.000128,2]
[339067599,1727191838975,-1316.82652942,0.000128,2]
[339067600,1727191838984,-2500.0,0.000128,2]
[339067601,1727191838993,-219.76,0.000128,2]
[339067602,1727191839004,-421.1595199,0.00012831,2]
[339067603,1727191839013,-329.88,0.00012868,2]
[339067604,1727191839022,-3793.92,0.0001287,2]
[339067605,1727191839031,-557.392,0.00012871,2]
[339067606,1727191839041,-1903.0,0.00012871,2]
[339067607,1727191839050,-1575.629,0.00012871,2]
[339067608,1727191839060,-904.243,0.00012871,2]
[339067609,1727191839069,-1304.61,0.00012871,2]
[339067610,1727191839079,-625.0,0.00012871,2]
[339067611,1727191839088,-1420.0,0.00012871,2]
[339067612,1727191839097,-448.0,0.00012871,2]
[339067613,1727191839106,-5865.0,0.00012871,2]
[339067614,1727191839115,-188.121,0.00012871,2]
[339067615,1727191839125,-13495.0,0.00012871,2]
[339067616,1727191839134,-500.0,0.00012873,2]
[339067617,1727191839145,-500.0,0.00012873,2]
[339067618,1727191839154,-500.0,0.00012873,2]
[339067619,1727191839164,-500.0,0.00012876,2]
[339067620,1727191839173,-486.09786443,0.00012876,2]
[339067621,1727191839182,-500.0,0.00012889,2]
[339067622,1727191839192,-150.76986783,0.00012889,2]
[339067623,1727191839203,-351.80154214,0.00012889,2]
[339067624,1727191839213,-3157.0,0.0001289,2]
[339067625,1727191839223,-134496.42363048,0.0001289,2]
[339067626,1727191839235,-775.44461026,0.0001289,2]
[339067629,1727191840271,-1386.10164022,0.0001289,2]
[339067630,1727191840284,-25542.18993968,0.0001289,2]
[339067688,1727191843326,-14017.0472,0.0001268,2]
[339067689,1727191843338,-177.662,0.00012871,2]
[339067690,1727191843349,-15504.40062321,0.0001289,2]
[339067704,1727191846284,-810.0,0.00012871,2]
[339067705,1727191846295,-2545.71851326,0.0001289,2]
[339067706,1727191846453,-302.6121,0.0001289,2]
[339067707,1727191846514,-18886.39629546,0.0001289,2]
[339067709,1727191946295,384.09,0.00010014,2]
[339067710,1727192315144,189.46,0.00010959,2]
[339067711,1727192735341,401.23,9.89e-05,2]
[339067801,1727192961119,153.45,0.00010959,2]
[339067804,1727193034171,-250.0,0.00011684,2]
[339067805,1727193034180,-298.76,0.00011693,2]
[339067806,1727193034190,-250.0,0.00011742,2]
[339067807,1727193034199,-609.92945929,0.00011757,2]
[339067808,1727193034209,-349.2404,0.00011757,2]
[339067809,1727193034219,-1.99014071,0.00011764,2]
[339067810,1727193034282,-1850.42985929,0.00011764,2]
[339067811,1727193034292,-411.3,0.00011798,2]
[339067812,1727193034302,-181.75,0.00011798,2]
[339067813,1727193034311,-250.4,0.00011801,2]
[339067814,1727193034320,-4721.90345571,0.00011808,2]
[339067815,1727193034439,-1039.14973622,0.00011808,2]
[339067816,1727193034451,-1163.4,0.00011808,2]
[339067836,1727193037514,-1275.20026284,0.00011808,2]
[339067837,1727193037828,-994.90595235,0.00011808,2]
[339067838,1727193037839,-1001.51568096,0.00011808,2]
[339067849,1727193039375,-394.272155,0.00011625,2]
[339067850,1727193039387,-455.71491192,0.00011808,2]
[339067851,1727193039398,-315.41293308,0.00011811,2]
[339067852,1727193039409,-539.06096133,0.00011811,2]
[339067853,1727193039505,-145.52610559,0.00011811,2]
[339067854,1727193039517,-197.92,0.00011878,2]
[339067855,1727193039526,-150.0,0.00011918,2]
[339067856,1727193039535,-401.23,0.00012154,2]
[339067857,1727193039544,-766.425509,0.00012377,2]
[339067858,1727193039553,-152.632681,0.00012377,2]
[339067859,1727193039563,-156.11362,0.00012377,2]
[339067860,1727193039572,-1211.149577,0.00012377,2]
[339067861,1727193039581,-499.99,0.00012377,2]
[339067862,1727193039590,-169.33,0.00012445,2]
[339067863,1727193039599,-766.425509,0.00012532,2]
[339067864,1727193039608,-1211.149577,0.00012532,2]
[339067865,1727193039617,-766.425509,0.00012686,2]
[339067867,1727193039626,-1211.149577,0.00012686,2]
[339067869,1727193039636,-1189.1036,0.00012795,2]
[339067871,1727193039645,-500.0,0.00012797,2]
[339067873,1727193039654,-150.0,0.00012798,2]
[339067875,1727193039663,-7500.0,0.00012798,2]
[339067877,1727193039673,-175.81,0.000128,2]
[339067879,1727193039682,-424.366,0.00012811,2]
[339067881,1727193039691,-174.91098054,0.00012811,2]
[339067882,1727193039700,-376.40946976,0.0001282,2]
[339067884,1727193039710,-766.425509,0.00012841,2]
[339067886,1727193039718,-1211.149577,0.00012841,2]
[339067888,1727193039727,-755.02306173,0.0001287,2]
[339067890,1727193039736,-1420.0,0.00012871,2]
[339067892,1727193039745,-561.512,0.00012871,2]
[339067894,1727193039756,-150.486,0.00012871,2]
[339067897,1727193039774,-933.0,0.00012871,2]
[339067899,1727193039784,-808.0,0.00012871,2]
[339067901,1727193039795,-150.0,0.00012871,2]
[339067903,1727193039804,-1086.316,0.00012871,2]
[339067905,1727193039814,-250.0,0.00012871,2]
[339067907,1727193039823,-150.0,0.00012871,2]
[339067909,1727193039832,-500.0,0.00012873,2]
[339067911,1727193039843,-500.0,0.00012873,2]
[339067912,1727193039852,-500.0,0.00012873,2]
[339067914,1727193039863,-500.0,0.00012876,2]
[339067916,1727193039872,-443.36489249,0.00012876,2]
[339067919,1727193039883,-159.3902091,0.00012888,2]
[339067921,1727193039894,-68833.75386632,0.0001289,2]
[339067923,1727193039903,-2420.2631557,0.00012895,2]
[339067924,1727193039912,-444.4115052,0.00012895,2]
[339067925,1727193039922,-10655.9014118,0.00012895,2]
[339067927,1727193039932,-500.0,0.00012897,2]
[339067928,1727193039942,-500.0,0.00012897,2]
[339067930,1727193039951,-500.0,0.00012897,2]
[339067932,1727193039961,-500.0,0.00012897,2]
[339067934,1727193039970,-500.0,0.00012897,2]
[339067936,1727193039980,-504.32422199,0.00012897,2]
[339067938,1727193039989,-500.0,0.00012897,2]
[339067940,1727193039998,-500.0,0.00012897,2]
[339067942,1727193040009,-500.0,0.00012897,2]
[339067944,1727193040020,-584291.89758133,0.00012898,2]
[339067946,1727193040029,-151.0,0.00012898,2]
[339067948,1727193040038,-151.0,0.00012898,2]
[339067950,1727193040048,-151.0,0.00012898,2]
[339067952,1727193040057,-151.0,0.00012898,2]
[339067954,1727193040066,-285.34683299,0.00012898,2]
[339067956,1727193040077,-277.06842138,0.00012898,2]
[339067958,1727193040086,-178.13315,0.00012898,2]
[339067960,1727193040097,-178.13315,0.00012898,2]
[339067962,1727193040107,-151.0,0.00012898,2]
[339067964,1727193040117,-191.01494,0.00012898,2]
[339067966,1727193040126,-191.01494,0.00012898,2]
[339067968,1727193040135,-151.0,0.00012898,2]
[339067970,1727193040145,-500.0,0.00012898,2]
[339067972,1727193040154,-500.0,0.00012898,2]
[339067974,1727193040164,-500.0,0.00012898,2]
[339067976,1727193040174,-187169.30575999,0.00012898,2]
[339067978,1727193040183,-733.0,0.00012899,2]
[339067980,1727193040193,-244.46315387,0.00012899,2]
[339067982,1727193040202,-10974.6236313,0.00012899,2]
[339067984,1727193040211,-780.85535886,0.00012899,2]
[339067986,1727193040221,-279456.1791327,0.00012899,2]
[339067988,1727193040231,-151.0,0.00012899,2]
[339067989,1727193040241,-151.0,0.00012899,2]
[339067991,1727193040251,-151.0,0.00012899,2]
[339067992,1727193040261,-151.0,0.00012899,2]
[339067994,1727193040270,-151.0,0.00012899,2]
[339067995,1727193040282,-151.0,0.00012899,2]
[339067997,1727193040291,-151.0,0.00012899,2]
[339067998,1727193040301,-151.0,0.00012899,2]
[339067999,1727193040311,-151.0,0.00012899,2]
[339068000,1727193040320,-162.105268,0.00012899,2]
[339068001,1727193040330,-162.105268,0.00012899,2]
[339068002,1727193040339,-151.0,0.00012899,2]
[339068003,1727193040546,-151.0,0.00012899,2]
[339068004,1727193040556,-151.0,0.00012899,2]
[339068005,1727193040566,-151.0,0.00012899,2]
[339068006,1727193040577,-178.13315,0.00012899,2]
[339068007,1727193040586,-178.13315,0.00012899,2]
[339068008,1727193040596,-151.0,0.00012899,2]
[339068009,1727193040606,-191.01494,0.00012899,2]
[339068010,1727193040616,-191.01494,0.00012899,2]
[339068011,1727193040626,-151.0,0.00012899,2]
[339068012,1727193040636,-500.0,0.00012899,2]
[339068013,1727193040646,-152.52077715,0.00012899,2]
[339068014,1727193040655,-491.21642974,0.00012899,2]
[339068015,1727193040665,-4170178.41582669,0.000129,2]
[339068016,1727193040678,-2607.13999706,0.000129,2]
[339068033,1727193042449,-17076.63229105,0.000129,2]
[339068034,1727193042503,-8895.09360482,0.000129,2]
[339068042,1727193045380,-5985.447,0.000129,2]
[339068043,1727193045642,-14147.23527007,0.000129,2]
[339068050,1727193261910,2215.24,0.000119,30]
[339068051,1727193334917,379.13,9.87e-05,2]
[339068053,1727193422033,1763.052388,0.00021,60]
[339068054,1727193604835,154.65,0.00010959,2]
[339068055,1727193884693,360.17,9.67e-05,2]
[339068065,1727194147075,179.27,0.00010959,2]
[339068075,1727194231527,-300.0,0.00011303,2]
[339068076,1727194231541,-113.64,0.00011303,2]
[339068077,1727194231552,-1000.0,0.00011399,2]
[339068078,1727194231564,-250.0,0.00011413,2]
[339068079,1727194231576,-413.64,0.00011423,2]
[339068080,1727194231587,-1500.0,0.00011433,2]
[339068081,1727194231598,-250.4,0.00011456,2]
[339068082,1727194231609,-150.27,0.00011459,2]
[339068083,1727194231620,-158.33,0.00011561,2]
[339068084,1727194231633,-413.64,0.00011578,2]
[339068085,1727194231647,-619.95206032,0.00011588,2]
[339068086,1727194231661,-1794.71793968,0.00011588,2]
[339068087,1727194231671,-250.0,0.00011588,2]
[339068088,1727194231683,-150.0,0.00011589,2]
[339068089,1727194231694,-250.0,0.00011602,2]
[339068090,1727194231705,-289.1,0.00011606,2]
[339068091,1727194231718,-300.0,0.00011687,2]
[339068092,1727194231729,-413.64,0.00011722,2]
[339068093,1727194231741,-413.64,0.00011722,2]
[339068094,1727194231752,-150.0,0.00011732,2]
[339068095,1727194231764,-53.5751656,0.00011732,2]
[339068096,1727194231777,-3923.6748344,0.00011732,2]
[339068097,1727194231788,-219.6,0.00011753,2]
[339068098,1727194231799,-499.99,0.00011753,2]
[339068099,1727194231809,-176.63,0.00011769,2]
[339068100,1727194231819,-150.0,0.00011875,2]
[339068101,1727194231830,-300.0,0.000119,4]
[339068102,1727194231841,-360.17,0.00011934,2]
[339068104,1727194231852,-413.64,0.0001199,2]
[339068106,1727194231862,-413.64,0.0001199,2]
[339068108,1727194231872,-595.30755546,0.00012,3]
[339068110,1727194231886,-2252.96,0.00012,3]
[339068113,1727194231900,-709.73244454,0.00012,3]
[339068116,1727194231911,-700.0,0.00012,4]
[339068119,1727194231922,-62.41377736,0.00012018,2]
[339068122,1727194231935,-87.58622264,0.00012018,2]
[339068124,1727194231945,-413.64,0.00012045,2]
[339068127,1727194231955,-203.4833163,0.00012045,2]
[339068129,1727194231968,-210.1566837,0.00012045,2]
[339068130,1727194231978,-150.0,0.00012054,2]
[339068131,1727194231990,-753.64,0.00012055,2]
[339068132,1727194232001,-753.64,0.00012055,2]
[339068133,1727194232012,-422.91,0.00012055,2]
[339068134,1727194232023,-753.64,0.00012055,2]
[339068135,1727194232035,-422.91,0.00012055,2]
[339068136,1727194232045,-753.64,0.00012055,2]
[339068137,1727194232055,-422.91,0.00012055,2]
[339068138,1727194232065,-422.91,0.00012055,2]
[339068139,1727194232074,-752.09,0.00012055,2]
[339068140,1727194232084,-422.91,0.00012055,2]
[339068141,1727194232095,-844.55,0.00012055,2]
[339068142,1727194232104,-413.64,0.0001209,2]
[339068143,1727194232114,-1100.0,0.000121,4]
[339068144,1727194232125,-150.0,0.00012161,2]
[339068145,1727194232137,-187.27,0.00012167,2]
[339068146,1727194232149,-358.13,0.00012192,2]
[339068147,1727194232160,-150.0,0.00012192,2]
[339068148,1727194232171,-150.0,0.00012192,2]
[339068149,1727194232182,-150.0,0.00012192,2]
[339068150,1727194232193,-428.31,0.00012192,2]
[339068151,1727194232204,-150.0,0.00012192,2]
[339068152,1727194232213,-150.0,0.00012192,2]
[339068153,1727194232223,-358.13,0.00012192,2]
[339068154,1727194232233,-150.0,0.00012192,2]
[339068155,1727194232245,-150.0,0.00012192,2]
[339068156,1727194232255,-357.68,0.00012192,2]
[339068157,1727194232266,-428.31,0.00012192,2]
[339068158,1727194232276,-150.0,0.00012192,2]
[339068159,1727194232286,-428.31,0.00012192,2]